bitfinex/quotes_SOLUSD_20241116
["timestamp","ask_amount","ask_price","bid_price","bid_amount"]
[1731799609461,9.0899361,215.43,215.37,11.6079]
[1731799609638,9.0899361,215.41,215.31,4.6444]
[1731799609850,9.0899361,215.41,215.33,9.0899361]
[1731799610365,9.0899361,215.41,215.34,4.6438]
[1731799610570,9.0899361,215.41,215.34,16.2533]
[1731799611673,13.7318361,215.43,215.34,16.2533]
[1731799611977,13.7318361,215.43,215.35,9.0899361]
[1731799613379,13.7318361,215.43,215.36,4.6433]
[1731799614570,0.12549,215.49,215.39,9.0899361]
[1731799614774,9.0899361,215.46,215.37,9.0899361]
[1731799615472,13.7312361,215.46,215.38,4.6429]
[1731799615664,0.12549,215.43,215.37,9.0899361]
[1731799615880,9.2154261,215.43,215.36,16.2516]
[1731799617454,0.12549,215.43,215.37,9.0899361]
[1731799619578,0.12549,215.43,215.37,13.7330361]
[1731799620382,0.12549,215.43,215.37,4.6431]
[1731799621263,9.2154261,215.43,215.35,9.0899361]
[1731799621483,13.8573261,215.43,215.34,11.609]
[1731799621981,13.8573261,215.43,215.34,16.2528]
[1731799622588,9.0899361,215.41,215.34,16.2528]
[1731799622760,0.12549,215.38,215.28,6.0037]
[1731799622967,0.12549,215.38,215.26,9.0899361]
[1731799622968,9.0899361,215.33,215.26,9.0899361]
[1731799623164,9.0899361,215.31,215.25,4.6457]
[1731799623359,13.7344361,215.31,215.22,15.5795361]
[1731799623554,9.0899361,215.29,215.22,13.7362361]
[1731799624367,0.12549,215.28,215.22,20.7059361]
[1731799624573,0.12549,215.28,215.22,11.616]
[1731799627891,14.23711112,215.29,215.22,11.616]
[1731799628082,14.23711112,215.31,215.24,20.0]
[1731799628791,14.23711112,215.33,215.25,30.49721112]
[1731799628972,14.23711112,215.36,215.29,14.23711112]
[1731799629174,14.23711112,215.34,215.27,14.23711112]
[1731799629369,14.23711112,215.34,215.25,30.49721112]
[1731799630064,14.23711112,215.34,215.27,14.23711112]
[1731799630384,14.23711112,215.34,215.28,4.6451]
[1731799630572,15.1539,215.39,215.31,14.23711112]
[1731799631281,14.23711112,215.38,215.31,14.23711112]
[1731799631886,14.23711112,215.38,215.32,4.6442]
[1731799632269,0.12549,215.39,215.32,16.2548]
[1731799632790,14.23711112,215.4,215.33,14.23711112]
[1731799633887,14.23711112,215.4,215.34,4.6438]
[1731799634194,14.23711112,215.38,215.29,18.88181112]
[1731799634363,14.23711112,215.36,215.29,4.6447]
[1731799634561,14.23711112,215.36,215.29,16.2569]
[1731799634769,14.23711112,215.36,215.29,30.49401112]
[1731799635469,14.23711112,215.34,215.29,16.257]
[1731799635679,14.23711112,215.36,215.29,16.257]
[1731799636370,18.88061112,215.36,215.29,16.257]
[1731799636576,0.12549,215.35,215.29,11.6122]
[1731799638686,14.23711112,215.38,215.29,25.84931112]
[1731799638898,14.23711112,215.4,215.33,14.23711112]
[1731799639497,14.23711112,215.42,215.35,14.23711112]
[1731799639702,14.23711112,215.46,215.37,14.23711112]
[1731799640595,14.23711112,215.46,215.39,14.23711112]
[1731799641209,14.23711112,215.44,215.37,14.23711112]
[1731799641503,15.1401,215.48,215.33,16.254]
[1731799641504,14.23711112,215.4,215.33,30.49111112]
[1731799641671,14.23711112,215.4,215.33,16.254]
[1731799642396,14.23711112,215.38,215.33,16.254]
[1731799642589,14.23711112,215.4,215.33,16.254]
[1731799643396,14.23711112,215.44,215.35,14.23711112]
[1731799643787,14.23711112,215.42,215.35,14.23711112]
[1731799644281,14.23711112,215.42,215.36,4.6433]
[1731799645071,14.23711112,215.42,215.36,16.2517]
[1731799645589,14.23711112,215.4,215.32,11.6105]
[1731799645796,14.23711112,215.38,215.32,16.2547]
[1731799646498,0.12549,215.39,215.32,16.2547]
[1731799646695,4.6429,215.38,215.32,16.2547]
[1731799646902,18.88001112,215.38,215.32,16.2547]
[1731799647293,14.23711112,215.36,215.32,11.6105]
[1731799647490,14.23711112,215.36,215.29,18.88181112]
[1731799647693,4.6429,215.38,215.29,4.6447]
[1731799647694,14.23711112,215.34,215.29,4.6447]
[1731799647877,14.23711112,215.34,215.27,18.88221112]
[1731799648081,0.12549,215.33,215.27,18.88221112]
[1731799648300,0.12549,215.33,215.27,4.6451]
[1731799648877,0.12549,215.33,215.27,16.2581]
[1731799649996,14.23711112,215.34,215.27,30.49521112]
[1731799650520,14.23711112,215.36,215.29,14.23711112]
[1731799650723,29.84551112,215.38,215.29,14.23711112]
[1731799650881,29.84551112,215.38,215.3,4.6446]
[1731799652104,14.11101852,215.36,215.3,16.2563]
[1731799652305,0.12549,215.35,215.3,16.2563]
[1731799653382,29.71941852,215.38,215.3,30.36731852]
[1731799655196,14.11101852,215.4,215.32,14.11101852]
[1731799655399,14.11101852,215.38,215.32,4.6441]
[1731799656998,38.01339252,215.42,215.32,18.75511852]
[1731799657209,14.11101852,215.42,215.32,18.75511852]
[1731799658081,18.75311852,215.42,215.32,30.36571852]
[1731799658395,14.11101852,215.38,215.32,16.2547]
[1731799659500,14.11101852,215.38,215.32,11.6106]
[1731799659501,0.12549,215.37,215.32,11.6106]
[1731799660693,23.776884,215.39,215.32,11.6106]
[1731799660902,14.23650852,215.38,215.32,11.6106]
[1731799661083,23.776884,215.37,215.32,11.6106]
[1731799662192,23.776884,215.37,215.28,14.11101852]
[1731799662381,23.776884,215.35,215.26,14.11101852]
[1731799663207,23.776884,215.35,215.28,14.11101852]
[1731799663407,23.776884,215.35,215.29,4.6448]
[1731799663785,23.776884,215.35,215.29,16.257]
[1731799665296,18.87990852,215.36,215.29,16.257]
[1731799665494,23.776884,215.35,215.26,14.11101852]
[1731799665810,0.12549,215.31,215.24,14.11101852]
[1731799666108,0.12549,215.31,215.25,4.6456]
[1731799666314,23.902374,215.31,215.25,16.2598]
[1731799666605,14.11101852,215.3,215.25,16.2598]
[1731799667289,14.11101852,215.3,215.25,11.6142]
[1731799668506,0.12549,215.28,215.23,4.6461]
[1731799668716,23.776884,215.27,215.21,11.6164]
[1731799668897,14.23650852,215.26,215.18,30.34181852]
[1731799669204,0.12549,215.23,215.15,14.11101852]
[1731799672734,0.12549,215.23,215.17,14.11101852]
[1731799674025,23.776884,215.24,215.17,14.11101852]
[1731799674523,0.12549,215.23,215.17,14.11101852]
[1731799675524,0.12549,215.24,215.18,14.11101852]
[1731799675724,14.11101852,215.28,215.2,14.11101852]
[1731799676117,14.11101852,215.26,215.19,14.11101852]
[1731799677329,23.776884,215.25,215.19,14.11101852]
[1731799678126,0.12549,215.26,215.19,14.11101852]
[1731799678635,14.23650852,215.26,215.19,14.11101852]
[1731799680827,0.12549,215.26,215.21,14.11101852]
[1731799681230,23.776884,215.29,215.23,14.11101852]
[1731799681409,0.12549,215.3,215.23,14.11101852]
[1731799681612,14.23650852,215.3,215.23,14.11101852]
[1731799682109,23.776884,215.29,215.23,14.11101852]
[1731799682712,0.12549,215.28,215.21,14.11101852]
[1731799682915,14.23650852,215.28,215.21,14.11101852]
[1731799683136,23.776884,215.29,215.21,14.11101852]
[1731799683627,23.776884,215.29,215.23,14.11101852]
[1731799684704,37.13101852,215.34,215.27,14.11101852]
[1731799684908,30.61051852,215.34,215.27,14.11101852]
[1731799685917,14.11101852,215.36,215.27,14.11101852]
[1731799686124,14.11101852,215.38,215.29,14.11101852]
[1731799686327,14.11101852,215.38,215.31,14.11101852]
[1731799687227,6.2794,215.45,215.22,0.1]
[1731799687228,14.11101852,215.4,215.33,14.11101852]
[1731799687624,14.11101852,215.42,215.33,14.11101852]
[1731799687839,29.75161852,215.44,215.37,14.11101852]
[1731799688018,15.6406,215.44,215.37,14.11101852]
[1731799688742,14.11101852,215.46,215.39,14.11101852]
[1731799689135,14.11101852,215.48,215.39,14.11101852]
[1731799689337,14.11101852,215.48,215.41,14.11101852]
[1731799690143,71.97936951,215.49,215.43,14.11101852]
[1731799690521,71.97936951,215.49,215.41,14.11101852]
[1731799690720,71.97936951,215.49,215.43,14.11101852]
[1731799691434,71.97936951,215.49,215.45,14.11101852]
[1731799691751,71.97936951,215.49,215.47,14.11101852]
[1731799692320,14.11101852,215.54,215.45,14.11101852]
[1731799692541,14.11101852,215.52,215.45,14.11101852]
[1731799692947,23.902374,215.51,215.45,14.11101852]
[1731799693249,14.11101852,215.54,215.47,14.11101852]
[1731799693421,23.902374,215.53,215.47,14.11101852]
[1731799693623,14.11101852,215.54,215.45,14.11101852]
[1731799694023,14.11101852,215.56,215.47,14.11101852]
[1731799694932,14.11101852,215.56,215.48,4.6408]
[1731799695253,23.776884,215.53,215.48,16.2428]
[1731799696648,23.776884,215.53,215.45,14.11101852]
[1731799697541,23.776884,215.53,215.46,4.6412]
[1731799698534,23.776884,215.53,215.47,14.11101852]
[1731799698943,23.902374,215.55,215.47,14.11101852]
[1731799699647,23.902374,215.55,215.49,14.11101852]
[1731799700841,23.776884,215.53,215.48,16.2426]
[1731799701049,23.776884,215.53,215.38,15.3808]
[1731799701050,23.776884,215.51,215.41,6.4757]
[1731799701251,14.23650852,215.5,215.42,14.11101852]
[1731799701438,23.776884,215.49,215.42,14.11101852]
[1731799702248,23.776884,215.49,215.43,4.6418]
[1731799703436,23.776884,215.51,215.43,4.6418]
[1731799703633,0.12549,215.5,215.45,4.6414]
[1731799706142,0.12549,215.5,215.43,16.2463]
[1731799706344,14.11101852,215.56,215.48,14.11101852]
[1731799707841,23.776884,215.55,215.49,4.6405]
[1731799708155,14.23650852,215.52,215.44,11.6036]
[1731799708365,23.776884,215.51,215.44,25.71461852]
[1731799709355,0.12549,215.5,215.44,30.35621852]
[1731799709556,23.776884,215.49,215.44,16.2452]
[1731799709857,0.12549,215.5,215.44,16.2452]
[1731799712374,23.902374,215.47,215.39,16.249]
[1731799712548,23.902374,215.47,215.4,14.11101852]
[1731799713140,23.902374,215.47,215.39,16.249]
[1731799713438,23.776884,215.43,215.39,11.6063]
[1731799714667,23.776884,215.43,215.39,16.249]
[1731799715037,23.776884,215.47,215.4,14.11101852]
[1731799715252,28.418484,215.44,215.35,11.6089]
[1731799715437,23.776884,215.42,215.35,25.71991852]
[1731799715638,23.776884,215.44,215.37,14.11101852]
[1731799715859,23.776884,215.44,215.39,14.11101852]
[1731799716060,23.776884,215.46,215.41,14.11101852]
[1731799716261,0.12549,215.47,215.41,14.11101852]
[1731799716464,0.12549,215.47,215.39,14.11101852]
[1731799716668,14.11101852,215.45,215.37,14.11101852]
[1731799716871,23.776884,215.42,215.35,25.71991852]
[1731799717165,0.12549,215.41,215.35,11.6089]
[1731799718561,0.12549,215.41,215.35,16.2525]
[1731799719545,0.12549,215.41,215.36,14.10258622]
[1731799720067,23.776884,215.43,215.36,14.10258622]
[1731799720568,0.12549,215.42,215.36,14.10258622]
[1731799720947,0.12549,215.42,215.37,4.6431]
[1731799723764,14.10258622,215.46,215.38,14.10258622]
[1731799723967,23.902374,215.47,215.4,14.10258622]
[1731799724954,23.902374,215.47,215.4,18.74488622]
[1731799725463,30.25658622,215.49,215.4,30.35118622]
[1731799725659,16.6596,215.54,215.46,14.10258622]
[1731799725981,16.6596,215.54,215.48,14.10258622]
[1731799726345,16.6596,215.54,215.46,14.10258622]
[1731799727548,23.902374,215.53,215.47,4.641]
[1731799727752,23.902374,215.53,215.46,18.74378622]
[1731799728469,23.902374,215.53,215.46,30.34638622]
[1731799730571,23.902374,215.53,215.47,14.08509774]
[1731799731460,23.902374,215.53,215.48,4.6408]
[1731799731776,28.542074,215.53,215.41,4.6423]
[1731799731956,23.776884,215.51,215.44,14.08509774]
[1731799732481,0.12549,215.5,215.44,14.08509774]
[1731799732972,0.12549,215.5,215.44,18.72669774]
[1731799737453,0.12549,215.5,215.46,14.08509774]
[1731799737757,4.6398,215.53,215.46,14.08509774]
[1731799737758,0.12549,215.51,215.46,14.08509774]
[1731799738061,0.12549,215.52,215.46,14.08509774]
[1731799739257,0.12549,215.52,215.46,18.72609774]
[1731799740378,0.12549,215.52,215.48,14.08509774]
[1731799741780,0.12549,215.52,215.48,18.72579774]
[1731799741994,16.6596,215.54,215.5,14.08509774]
[1731799742969,16.6596,215.54,215.52,14.08509774]
[1731799743165,19.9732,215.59,215.52,14.08509774]
[1731799744085,19.9732,215.59,215.52,18.72499774]
[1731799744455,0.12549,215.58,215.52,18.72499774]
[1731799745179,28.540974,215.58,215.52,18.72499774]
[1731799746056,23.902374,215.58,215.52,18.72499774]
[1731799746482,23.902374,215.58,215.52,30.32479774]
[1731799746779,28.541074,215.58,215.52,30.32479774]
[1731799747985,0.12549,215.58,215.52,30.32479774]
[1731799748185,0.12549,215.61,215.54,14.08509774]
[1731799748471,0.12549,215.61,215.55,14.08509774]
[1731799748703,4.6379,215.62,215.55,14.08509774]
[1731799749254,4.6379,215.62,215.55,18.72419774]
[1731799749854,23.902374,215.61,215.55,18.72419774]
[1731799751085,23.902374,215.61,215.57,14.08509774]
[1731799751266,0.12549,215.61,215.57,14.08509774]
[1731799751579,15.3347,215.64,215.57,14.08509774]
[1731799752858,0.12549,215.63,215.57,18.72379774]
[1731799753261,23.902374,215.63,215.55,16.2373]
[1731799753464,23.902374,215.63,215.55,30.32239774]
[1731799754759,23.776884,215.61,215.55,30.32239774]
[1731799754954,0.12549,215.6,215.55,16.2373]
[1731799755279,0.12549,215.6,215.55,30.32239774]
[1731799756788,0.12549,215.6,215.55,9.00798757]
[1731799757166,19.9722,215.64,215.55,9.00798757]
[1731799757368,23.902374,215.63,215.55,9.00798757]
[1731799758291,23.902374,215.63,215.56,4.639]
[1731799758486,37.54796157,215.63,215.56,4.639]
[1731799759369,37.54796157,215.63,215.56,13.64698757]
[1731799761785,37.54796157,215.63,215.56,25.24458757]
[1731799762666,37.54796157,215.63,215.54,13.64738757]
[1731799763472,37.54796157,215.63,215.54,25.24608757]
[1731799764787,23.902374,215.63,215.58,9.00798757]
[1731799764995,4.6373,215.65,215.58,9.00798757]
[1731799765287,23.776884,215.64,215.58,9.00798757]
[1731799765869,23.776884,215.63,215.58,9.00798757]
[1731799766090,0.12549,215.64,215.58,13.64648757]
[1731799766284,0.12549,215.67,215.6,9.00798757]
[1731799767209,0.12549,215.67,215.61,4.638]
[1731799767703,23.902374,215.67,215.61,4.638]
[1731799768999,16.6154,215.7,215.64,9.00798757]
[1731799769295,13.64368757,215.72,215.64,9.00798757]
[1731799770075,13.64368757,215.72,215.65,4.6371]
[1731799770400,0.12549,215.71,215.65,4.6371]
[1731799770573,21.2502,215.76,215.68,9.00798757]
[1731799770773,21.2502,215.76,215.69,9.00798757]
[1731799771398,9.00798757,215.75,215.69,9.00798757]
[1731799771780,9.00798757,215.77,215.69,13.64408757]
[1731799772005,4.6343,215.78,215.72,9.00798757]
[1731799773286,0.12549,215.77,215.72,9.00798757]
[1731799773990,0.532909,215.79,215.74,9.00798757]
[1731799775204,0.532909,215.79,215.74,13.64308757]
[1731799775704,0.532909,215.79,215.76,9.00798757]
[1731799775873,0.532909,215.79,215.77,9.00798757]
[1731799776878,0.532909,215.79,215.77,14.04711395]
[1731799777889,0.532909,215.79,215.78,14.04711395]
[1731799778593,0.532909,215.79,215.78,14.17260395]
[1731799778900,0.532909,215.79,215.78,4.75979]
[1731799779104,0.532909,215.79,215.78,18.80690395]
[1731799779275,0.532909,215.79,215.77,14.04711395]
[1731799779478,0.532909,215.79,215.78,14.04711395]
[1731799780388,0.532909,215.79,215.76,16.2215]
[1731799780782,0.532909,215.79,215.76,11.5869]
[1731799780998,0.532909,215.79,215.75,6.4509]
[1731799781702,0.532909,215.79,215.75,11.0858]
[1731799782005,0.532909,215.79,215.74,14.04711395]
[1731799782191,0.532909,215.79,215.73,14.04711395]
[1731799782907,0.532909,215.79,215.75,18.68191395]
[1731799784296,0.532909,215.79,215.75,30.26931395]
[1731799784507,0.532909,215.79,215.77,14.04711395]
[1731799786293,0.532909,215.79,215.78,4.6343]
[1731799786491,0.532909,215.79,215.76,4.6346]
[1731799786692,0.532909,215.79,215.76,30.26861395]
[1731799788587,0.532909,215.79,215.74,14.04711395]
[1731799790695,0.532909,215.79,215.72,11.589]
[1731799790909,0.532909,215.79,215.72,25.63611395]
[1731799791099,5.167109,215.79,215.72,30.27171395]
[1731799795295,37.94948795,215.78,215.7,14.04711395]
[1731799796022,0.12549,215.75,215.68,30.27451395]
[1731799796812,0.12549,215.75,215.68,25.22496199]
[1731799797615,28.537474,215.75,215.66,4.6367]
[1731799797918,0.12549,215.73,215.66,8.99756199]
[1731799798300,8.99756199,215.72,215.64,8.99756199]
[1731799798499,0.12549,215.71,215.63,16.2309]
[1731799798699,8.99756199,215.7,215.64,8.99756199]
[1731799799012,14.18967379,215.71,215.64,14.06418379]
[1731799799218,4.636,215.7,215.64,14.06418379]
[1731799800427,4.636,215.7,215.64,18.70148379]
[1731799801402,14.18967379,215.71,215.64,18.70148379]
[1731799801720,18.82547379,215.71,215.64,18.70148379]
[1731799802226,18.82547379,215.71,215.64,14.06418379]
[1731799802601,18.82547379,215.71,215.64,18.70148379]
[1731799802801,4.76099,215.73,215.66,14.06418379]
[1731799803020,18.82517379,215.73,215.64,16.2306]
[1731799803217,23.776884,215.72,215.64,30.29478379]
[1731799803533,0.12549,215.71,215.64,30.29478379]
[1731799804117,4.76139,215.71,215.64,30.29478379]
[1731799804315,0.12549,215.66,215.54,4.6395]
[1731799804525,0.12549,215.66,215.59,14.06418379]
[1731799804909,0.12549,215.69,215.63,14.06418379]
[1731799805604,14.18967379,215.69,215.61,14.06418379]
[1731799805797,18.82607379,215.69,215.61,18.70198379]
[1731799806004,0.12549,215.7,215.63,14.06418379]
[1731799806221,0.12549,215.72,215.65,14.06418379]
[1731799807219,18.70008379,215.71,215.64,4.6373]
[1731799807396,18.70008379,215.71,215.63,14.06418379]
[1731799807397,0.12549,215.7,215.63,18.70168379]
[1731799808817,4.6355,215.73,215.67,14.06418379]
[1731799809131,4.6355,215.73,215.63,11.5939]
[1731799809132,23.776884,215.7,215.63,11.5939]
[1731799809302,0.12549,215.69,215.63,11.5939]
[1731799809498,0.12549,215.69,215.63,16.2314]
[1731799809897,0.12549,215.72,215.66,14.06418379]
[1731799810130,15.187,215.74,215.68,14.06418379]
[1731799810510,15.187,215.74,215.68,18.70048379]
[1731799810726,15.187,215.74,215.68,30.29168379]
[1731799811302,14.06418379,215.73,215.66,18.70088379]
[1731799811724,23.902374,215.72,215.66,25.65648379]
[1731799811913,23.902374,215.72,215.66,11.5923]
[1731799812229,14.06418379,215.67,215.6,14.06418379]
[1731799812525,28.539274,215.66,215.59,4.6384]
[1731799812735,14.06418379,215.65,215.58,14.06418379]
[1731799812928,14.06418379,215.65,215.57,11.5971]
[1731799812929,14.06418379,215.63,215.57,11.5971]
[1731799813430,14.06418379,215.63,215.57,16.2359]
[1731799813935,15.6267,215.65,215.6,14.06418379]
[1731799814231,15.6267,215.65,215.62,14.06418379]
[1731799814628,15.6267,215.65,215.62,18.70188379]
[1731799815333,15.6267,215.65,215.62,4.6377]
[1731799817434,15.6267,215.7,215.64,14.06418379]
[1731799817804,14.06418379,215.74,215.66,14.06418379]
[1731799818939,15.6267,215.75,215.7,14.06418379]
[1731799819237,5.167109,215.79,215.72,14.06418379]
[1731799819820,5.167109,215.79,215.72,18.69968379]
[1731799820512,0.12549,215.78,215.72,18.69968379]
[1731799820930,0.532909,215.79,215.72,18.69968379]
[1731799821138,0.532909,215.79,215.74,14.06418379]
[1731799822428,0.532909,215.79,215.74,18.69918379]
[1731799824138,0.532909,215.79,215.78,14.06418379]
[1731799824536,0.532909,215.79,215.78,18.69848379]
[1731799824740,0.532909,215.79,215.78,18.91764841]
[1731799824921,0.532909,215.79,215.78,18.69848379]
[1731799826738,0.532909,215.79,215.78,18.91764841]
[1731799827518,0.532909,215.79,215.78,38.91764841]
[1731799832631,0.532909,215.79,215.78,39.04313841]
[1731799833317,0.532909,215.79,215.78,38.69848379]
[1731799833516,0.532909,215.79,215.78,38.79215841]
[1731799834014,0.532909,215.79,215.78,38.69848379]
[1731799834226,0.532909,215.79,215.76,4.6347]
[1731799834929,0.532909,215.79,215.75,11.5874]
[1731799837248,0.532909,215.79,215.75,25.65158379]
[1731799838231,0.532909,215.79,215.75,30.28648379]
[1731799838434,0.532909,215.79,215.75,16.2223]
[1731799838634,14.06418379,215.78,215.73,4.6353]
[1731799839938,0.532909,215.79,215.72,14.06418379]
[1731799840550,15.8485,215.78,215.72,14.06418379]
[1731799841748,15.8485,215.78,215.72,18.69958379]
[1731799842450,0.532909,215.79,215.74,14.06418379]
[1731799843544,0.532909,215.79,215.76,14.06418379]
[1731799843852,0.532909,215.79,215.77,4.6345]
[1731799844851,0.532909,215.79,215.77,16.2209]
[1731799849069,0.532909,215.79,215.76,14.06418379]
[1731799849245,24.309793,215.79,215.71,14.06418379]
[1731799849558,28.943993,215.79,215.71,14.06418379]
[1731799850452,28.943993,215.79,215.71,18.69978379]
[1731799851055,28.943993,215.79,215.71,30.28938379]
[1731799851265,0.532909,215.79,215.73,14.06418379]
[1731799852337,14.06418379,215.75,215.67,14.06418379]
[1731799852536,14.06418379,215.77,215.67,14.06418379]
[1731799852757,14.06418379,215.77,215.69,14.06418379]
[1731799853259,19.23119279,215.79,215.69,14.06418379]
[1731799854357,19.23119279,215.79,215.7,4.636]
[1731799854758,19.23119279,215.79,215.71,14.06418379]
[1731799855054,14.59709279,215.79,215.71,14.06418379]
[1731799855248,0.532909,215.79,215.73,14.06418379]
[1731799855970,0.532909,215.79,215.7,16.2261]
[1731799856142,0.532909,215.79,215.73,14.06418379]
[1731799856334,0.532909,215.79,215.74,4.6352]
[1731799856753,0.532909,215.79,215.75,14.06418379]
[1731799858173,0.532909,215.79,215.77,14.06418379]
[1731799858661,0.532909,215.79,215.78,20.0]
[1731799858851,0.532909,215.79,215.78,20.09367462]
[1731799859059,0.532909,215.79,215.78,20.34465462]
[1731799860562,0.532909,215.79,215.78,48.75583862]
[1731799860766,0.532909,215.79,215.78,24.6343]
[1731799861144,0.532909,215.79,215.78,24.85346462]
[1731799861858,0.532909,215.79,215.78,4.75979]
[1731799862060,0.532909,215.79,215.78,4.6343]
[1731799864047,0.532909,215.79,215.78,4.85346462]
[1731799866173,0.532909,215.79,215.78,4.6343]
[1731799868273,0.532909,215.79,215.76,16.2216]
[1731799868569,0.532909,215.79,215.76,11.5869]
[1731799868750,14.59709279,215.79,215.72,4.6355]
[1731799868947,14.59709279,215.79,215.72,16.2245]
[1731799869151,14.59709279,215.79,215.72,30.28868379]
[1731799869570,0.532909,215.79,215.72,30.28868379]
[1731799869769,0.532909,215.79,215.78,14.06418379]
[1731799869982,0.532909,215.79,215.78,34.06418379]
[1731799870154,0.532909,215.79,215.78,38.69848379]
[1731799870563,0.532909,215.79,215.78,38.91764841]
[1731799870771,0.532909,215.79,215.78,24.6343]
[1731799872151,0.532909,215.79,215.78,4.6343]
[1731799872353,0.532909,215.79,215.78,24.6343]
[1731799872956,0.532909,215.79,215.78,24.85346462]
[1731799873161,0.532909,215.79,215.78,24.6343]
[1731799873387,0.532909,215.79,215.78,4.6343]
[1731799873968,0.532909,215.79,215.78,4.72797462]
[1731799874171,0.532909,215.79,215.78,24.85346462]
[1731799876172,0.532909,215.79,215.78,38.91764841]
[1731799877181,0.532909,215.79,215.78,62.82002241]
[1731799877381,0.532909,215.79,215.78,38.91764841]
[1731799877892,0.532909,215.79,215.78,62.92002241]
[1731799878187,0.532909,215.79,215.78,62.69453241]
[1731799878402,0.532909,215.79,215.78,39.01764841]
[1731799879298,0.532909,215.79,215.78,62.92002241]
[1731799879465,0.532909,215.79,215.78,63.02002241]
[1731799879670,16.2518,215.9,215.84,20.0]
[1731799879977,16.2518,215.9,215.85,14.06418379]
[1731799881192,16.2518,215.9,215.86,4.6326]
[1731799882581,14.06418379,215.95,215.87,14.06418379]
[1731799882777,16.2418,215.96,215.89,14.06418379]
[1731799883273,14.06418379,215.94,215.87,20.0]
[1731799883973,14.06418379,215.92,215.87,20.0]
[1731799884379,14.06418379,215.94,215.87,20.0]
[1731799884576,16.2418,215.96,215.89,14.06418379]
[1731799884789,29.06418379,215.98,215.91,14.06418379]
[1731799885088,15.0,215.98,215.91,14.06418379]
[1731799885476,14.5,215.98,215.91,14.06418379]
[1731799885900,14.5,215.98,215.92,4.6313]
[1731799886900,14.5,215.98,215.92,16.2096]
[1731799887779,14.5,215.98,215.93,14.06418379]
[1731799888483,28.56418379,215.98,215.89,20.09367462]
[1731799888684,28.56418379,215.98,215.91,20.0]
[1731799889103,28.06418379,215.98,215.91,20.0]
[1731799889485,14.0,215.98,215.92,18.69548379]
[1731799890806,14.0,215.98,215.92,30.27378379]
[1731799892381,14.0,215.98,215.94,14.06418379]
[1731799892586,14.0,215.98,215.95,20.0]
[1731799893705,14.0,215.98,215.97,14.06418379]
[1731799894689,14.0,215.98,215.97,18.69438379]
[1731799899999,14.0,215.98,215.97,4.6302]
[1731799903596,0.532909,216.0,215.97,4.6302]
[1731799908291,0.532909,216.0,215.98,8.97607553]
[1731799908909,0.532909,216.0,215.99,4.6298]
[1731799910913,0.532909,216.0,215.99,24.6298]
[1731799911611,0.532909,216.0,215.99,4.6298]
[1731799913520,0.532909,216.0,215.99,13.60587553]
[1731799915519,0.532909,216.0,215.99,4.6298]
[1731799917212,0.532909,216.0,215.99,8.97607553]
[1731799917804,0.532909,216.0,215.99,28.97607553]
[1731799918514,0.532909,216.0,215.99,33.60587553]
[1731799921199,0.532909,216.0,215.99,13.60587553]
[1731799924524,0.532909,216.0,215.98,16.205]
[1731799926925,0.532909,216.0,215.96,8.97607553]
[1731799928699,0.532909,216.0,215.97,20.0]
[1731799929222,0.532909,216.0,215.98,4.63]
[1731799929926,0.532909,216.0,215.96,4.6303]
[1731799931214,0.532909,216.0,215.96,8.97607553]
[1731799931410,0.532909,216.0,215.9,20.0]
[1731799931411,0.532909,216.0,215.9,4.6317]
[1731799931612,15.7525,215.96,215.9,16.2111]
[1731799931803,8.97607553,215.95,215.9,16.2111]
[1731799932009,15.7525,215.96,215.9,25.18717553]
[1731799932210,0.532909,216.0,215.94,8.97607553]
[1731799932418,0.532909,216.0,215.96,8.97607553]
[1731799933323,0.532909,216.0,215.96,13.60627553]
[1731799933711,0.532909,216.0,215.96,4.6302]
[1731799934018,0.532909,216.0,215.96,24.6302]
[1731799934211,0.532909,216.0,215.96,36.2064]
[1731799934415,0.532909,216.0,215.97,8.97607553]
[1731799935216,0.532909,216.0,215.99,52.75295953]
[1731799935416,0.532909,216.0,215.99,57.38275953]
[1731799936413,0.532909,216.0,215.99,37.38275953]
[1731799936613,0.532909,216.0,215.99,28.406684]
[1731799936827,0.532909,216.0,215.99,4.6298]
[1731799938414,0.532909,216.0,215.99,13.60587553]
[1731799938720,0.532909,216.0,215.99,37.38275953]